[Event "Titled Tuesday Blitz December 27 Early 2022"]
[White "Baches Garcia, Guillermo"]
[Black "Christiansen, Johan-Sebastian"]
[WhiteFideId "2209764"]
[BlackFideId "1512668"]
[WhiteElo "2327"]
[BlackElo "2579"]
[Result "0-1"]
[Round "02"]
[TimeControl "180+2"]
[Date "2022.12.27"]
[WhiteClock "0:00:11"]
[BlackClock "0:00:09"]

1. e4 {[%clk 0:03:00]}  e5 {[%clk 0:02:58]} 2. Nf3 {[%clk 0:03:01]}  Nc6 {[%clk 0:02:58]} 3. Bc4 {[%clk 0:03:00]}  Nf6 {[%clk 0:02:55]} 4. Ng5 {[%clk 0:03:00]}  d5 {[%clk 0:02:53]} 5. exd5 {[%clk 0:03:01]}  Na5 {[%clk 0:02:54]} 6. Bb5+ {[%clk 0:03:01]}  c6 {[%clk 0:02:55]} 7. dxc6 {[%clk 0:03:02]}  bxc6 {[%clk 0:02:55]} 8. Qf3 {[%clk 0:03:03]}  cxb5 {[%clk 0:02:54]} 9. Qxa8 {[%clk 0:03:02]}  Qc7 {[%clk 0:02:54]} 10. Nc3 {[%clk 0:02:48]}  a6 {[%clk 0:02:53]} 11. Nge4 {[%clk 0:02:29]}  Nxe4 {[%clk 0:02:44]} 12. Qxe4 {[%clk 0:02:22]}  Bb7 {[%clk 0:02:43]} 13. Qg4 {[%clk 0:02:12]}  h5 {[%clk 0:02:41]} 14. Qg3 {[%clk 0:02:12]}  h4 {[%clk 0:02:40]} 15. Qg4 {[%clk 0:02:04]}  h3 {[%clk 0:02:39]} 16. f3 {[%clk 0:01:58]}  hxg2 {[%clk 0:02:24]} 17. Qxg2 {[%clk 0:01:57]}  Nc6 {[%clk 0:02:23]} 18. d3 {[%clk 0:01:26]}  Nd4 {[%clk 0:02:21]} 19. Be3 {[%clk 0:01:09]}  Bxf3 {[%clk 0:01:27]} 20. Qg3 {[%clk 0:00:58]}  Nxc2+ {[%clk 0:00:22]} 21. Kd2 {[%clk 0:00:58]}  Bxh1 {[%clk 0:00:22]} 22. Rxh1 {[%clk 0:00:40]}  Nxe3 {[%clk 0:00:22]} 23. Qxe3 {[%clk 0:00:39]}  Bb4 {[%clk 0:00:13]} 24. Qe4 {[%clk 0:00:31]}  Bxc3+ {[%clk 0:00:12]} 25. bxc3 {[%clk 0:00:32]}  O-O {[%clk 0:00:12]} 26. Re1 {[%clk 0:00:26]}  Re8 {[%clk 0:00:11]} 27. Re3 {[%clk 0:00:26]}  Qd6 {[%clk 0:00:10]} 28. Rg3 {[%clk 0:00:25]}  g6 {[%clk 0:00:10]} 29. h4 {[%clk 0:00:25]}  Qe6 {[%clk 0:00:10]} 30. h5 {[%clk 0:00:23]}  Qxa2+ {[%clk 0:00:09]} 31. Ke3 {[%clk 0:00:24]}  Qh2 {[%clk 0:00:09]} 32. Qg4 {[%clk 0:00:19]}  e4 {[%clk 0:00:08]} 33. d4 {[%clk 0:00:18]}  Qc2 {[%clk 0:00:06]} 34. hxg6 {[%clk 0:00:17]}  Qxc3+ {[%clk 0:00:07]} 35. Kf4 {[%clk 0:00:14]}  Qd2+ {[%clk 0:00:04]} 36. Kf5 {[%clk 0:00:13]}  Qf2+ {[%clk 0:00:04]} 37. Kg5 {[%clk 0:00:12]}  f6+ {[%clk 0:00:04]} 38. Kh6 {[%clk 0:00:11]}  Qd2+ {[%clk 0:00:03]} 39. Kh5 {[%clk 0:00:11]}  Qh2+ {[%clk 0:00:03]} 40. Rh3 {[%clk 0:00:11]}  Qd2 {[%clk 0:00:04]} 41. g7 {[%clk 0:00:07]}  Qg5+ {[%clk 0:00:02]} 42. Qxg5 {[%clk 0:00:08]}  fxg5 {[%clk 0:00:03]} 43. Kxg5 {[%clk 0:00:08]}  e3 {[%clk 0:00:04]} 44. Rh1 {[%clk 0:00:08]}  e2 {[%clk 0:00:03]} 45. Re1 {[%clk 0:00:08]}  Kxg7 {[%clk 0:00:04]} 46. d5 {[%clk 0:00:09]}  Re5+ {[%clk 0:00:03]} 47. Kf4 {[%clk 0:00:09]}  Rxd5 {[%clk 0:00:04]} 48. Rxe2 {[%clk 0:00:10]}  a5 {[%clk 0:00:05]} 49. Ra2 {[%clk 0:00:10]}  a4 {[%clk 0:00:05]} 50. Ke4 {[%clk 0:00:11]}  Rc5 {[%clk 0:00:06]} 51. Kd4 {[%clk 0:00:11]}  Rc4+ {[%clk 0:00:07]} 52. Kd5 {[%clk 0:00:12]}  Rb4 {[%clk 0:00:06]} 53. Kc5 {[%clk 0:00:11]}  Rb3 {[%clk 0:00:07]} 54. Kd4 {[%clk 0:00:11]}  a3 {[%clk 0:00:07]} 55. Kc5 {[%clk 0:00:11]}  b4 {[%clk 0:00:07]} 56. Kc4 {[%clk 0:00:12]}  Rb2 {[%clk 0:00:08]} 57. Ra1 {[%clk 0:00:12]}  a2 {[%clk 0:00:09]} 58. Kd3 {[%clk 0:00:11]}  b3 {[%clk 0:00:09]} 59. Rg1+ {[%clk 0:00:11]}  Kf6 {[%clk 0:00:09]} 60. Rg6+ {[%clk 0:00:11]}  Kxg6 {[%clk 0:00:09]} 0-1


[Site "https://www.chess.com"]

[Event "Titled Tuesday Blitz December 27 Early 2022"]
[White "Barbashin, Igor"]
[Black "Petrovic, Aleksa"]
[WhiteFideId "4155718"]
[BlackFideId "967629"]
[WhiteElo "2169"]
[BlackElo "2332"]
[Result "1-0"]
[Round "02"]
[TimeControl "180+2"]
[Date "2022.12.27"]
[WhiteClock "0:01:06"]
[BlackClock "0:00:23"]

1. d4 {[%clk 0:03:00]}  e6 {[%clk 0:02:59]} 2. c4 {[%clk 0:03:00]}  Nf6 {[%clk 0:02:59]} 3. Nc3 {[%clk 0:02:58]}  Bb4 {[%clk 0:02:58]} 4. Nf3 {[%clk 0:02:59]}  b6 {[%clk 0:02:57]} 5. g3 {[%clk 0:02:59]}  Ba6 {[%clk 0:02:57]} 6. Qb3 {[%clk 0:02:51]}  c5 {[%clk 0:02:54]} 7. a3 {[%clk 0:02:45]}  Ba5 {[%clk 0:02:52]} 8. Bg2 {[%clk 0:02:45]}  Nc6 {[%clk 0:02:51]} 9. d5 {[%clk 0:02:34]}  Nd4 {[%clk 0:02:44]} 10. Nxd4 {[%clk 0:02:18]}  cxd4 {[%clk 0:02:43]} 11. Qd1 {[%clk 0:02:17]}  dxc3 {[%clk 0:02:43]} 12. b4 {[%clk 0:02:16]}  Bxc4 {[%clk 0:02:40]} 13. dxe6 {[%clk 0:02:15]}  Bxe6 {[%clk 0:02:05]} 14. Qd6 {[%clk 0:01:46]}  Qb8 {[%clk 0:01:49]} 15. Bf4 {[%clk 0:01:39]}  Qxd6 {[%clk 0:01:44]} 16. Bxd6 {[%clk 0:01:40]}  Bxb4 {[%clk 0:01:28]} 17. axb4 {[%clk 0:01:36]}  Bd5 {[%clk 0:01:28]} 18. Bxd5 {[%clk 0:01:28]}  Nxd5 {[%clk 0:01:26]} 19. O-O-O {[%clk 0:01:28]}  Nf6 {[%clk 0:01:19]} 20. Rd3 {[%clk 0:01:24]}  Ne4 {[%clk 0:01:18]} 21. Re3 {[%clk 0:01:23]}  f5 {[%clk 0:01:10]} 22. f3 {[%clk 0:01:23]}  Kf7 {[%clk 0:01:08]} 23. fxe4 {[%clk 0:01:23]}  fxe4 {[%clk 0:00:55]} 24. Rxe4 {[%clk 0:01:22]}  Rhe8 {[%clk 0:00:56]} 25. Rf1+ {[%clk 0:01:21]}  Kg8 {[%clk 0:00:55]} 26. Rxe8+ {[%clk 0:01:17]}  Rxe8 {[%clk 0:00:56]} 27. e4 {[%clk 0:01:15]}  h6 {[%clk 0:00:53]} 28. e5 {[%clk 0:01:15]}  Rc8 {[%clk 0:00:45]} 29. Kc2 {[%clk 0:01:13]}  Rc4 {[%clk 0:00:40]} 30. Rf4 {[%clk 0:01:10]}  Rxf4 {[%clk 0:00:32]} 31. gxf4 {[%clk 0:01:10]}  Kf7 {[%clk 0:00:32]} 32. b5 {[%clk 0:01:10]}  Ke6 {[%clk 0:00:31]} 33. Bb8 {[%clk 0:01:10]}  Kd5 {[%clk 0:00:26]} 34. Bxa7 {[%clk 0:01:10]}  Kc5 {[%clk 0:00:26]} 35. f5 {[%clk 0:01:08]}  Kd5 {[%clk 0:00:24]} 36. f6 {[%clk 0:01:05]}  gxf6 {[%clk 0:00:23]} 37. exf6 {[%clk 0:01:05]}  Ke6 {[%clk 0:00:23]} 38. Bxb6 {[%clk 0:01:05]}  Kxf6 {[%clk 0:00:23]} 39. Bc7 {[%clk 0:01:06]} 1-0


[Site "https://www.chess.com"]

[Event "Titled Tuesday Blitz December 27 Early 2022"]
[White "Bodnaruk, Anastasia"]
[Black "Orujov, Elshad"]
[WhiteFideId "4181751"]
[BlackFideId "13403540"]
[WhiteElo "2350"]
[BlackElo "2304"]
[Result "1-0"]
[Round "02"]
[TimeControl "180+2"]
[Date "2022.12.27"]
[WhiteClock "0:01:17"]
[BlackClock "0:00:08"]

1. e4 {[%clk 0:03:00]}  c5 {[%clk 0:02:59]} 2. Nc3 {[%clk 0:03:00]}  d6 {[%clk 0:03:00]} 3. Nge2 {[%clk 0:02:59]}  Nf6 {[%clk 0:02:59]} 4. d4 {[%clk 0:02:59]}  cxd4 {[%clk 0:03:00]} 5. Nxd4 {[%clk 0:02:59]}  a6 {[%clk 0:03:00]} 6. Nb3 {[%clk 0:02:58]}  Nc6 {[%clk 0:02:48]} 7. Be3 {[%clk 0:02:47]}  e5 {[%clk 0:02:48]} 8. f3 {[%clk 0:02:44]}  Be6 {[%clk 0:02:46]} 9. Be2 {[%clk 0:02:43]}  Be7 {[%clk 0:02:46]} 10. O-O {[%clk 0:02:42]}  O-O {[%clk 0:02:46]} 11. Nd5 {[%clk 0:02:43]}  Bxd5 {[%clk 0:02:45]} 12. exd5 {[%clk 0:02:43]}  Nb8 {[%clk 0:02:42]} 13. f4 {[%clk 0:02:43]}  Nbd7 {[%clk 0:02:41]} 14. fxe5 {[%clk 0:02:30]}  Nxe5 {[%clk 0:02:39]} 15. Nd4 {[%clk 0:02:29]}  g6 {[%clk 0:02:32]} 16. c4 {[%clk 0:02:28]}  Rc8 {[%clk 0:02:30]} 17. b3 {[%clk 0:02:28]}  Qd7 {[%clk 0:02:28]} 18. Kh1 {[%clk 0:02:16]}  Rfe8 {[%clk 0:02:08]} 19. Bf4 {[%clk 0:02:10]}  Neg4 {[%clk 0:01:56]} 20. h3 {[%clk 0:02:08]}  Ne5 {[%clk 0:01:55]} 21. a4 {[%clk 0:02:05]}  Ne4 {[%clk 0:01:51]} 22. Rc1 {[%clk 0:01:56]}  Bf8 {[%clk 0:01:30]} 23. Bxe5 {[%clk 0:01:50]}  dxe5 {[%clk 0:01:27]} 24. Nf3 {[%clk 0:01:47]}  f5 {[%clk 0:01:27]} 25. Kh2 {[%clk 0:01:45]}  h6 {[%clk 0:01:20]} 26. Bd3 {[%clk 0:01:44]}  Nf6 {[%clk 0:01:20]} 27. Nh4 {[%clk 0:01:43]}  e4 {[%clk 0:01:15]} 28. Be2 {[%clk 0:01:40]}  Bd6+ {[%clk 0:01:15]} 29. Kh1 {[%clk 0:01:40]}  Kh7 {[%clk 0:01:12]} 30. Qe1 {[%clk 0:01:33]}  Qc7 {[%clk 0:01:10]} 31. Nxf5 {[%clk 0:01:29]}  gxf5 {[%clk 0:01:04]} 32. Rxf5 {[%clk 0:01:29]}  Be5 {[%clk 0:01:04]} 33. Qh4 {[%clk 0:01:29]}  Qg7 {[%clk 0:01:00]} 34. Rcf1 {[%clk 0:01:25]}  Rg8 {[%clk 0:00:55]} 35. g4 {[%clk 0:01:22]}  Rcf8 {[%clk 0:00:50]} 36. Rxe5 {[%clk 0:01:18]}  Kh8 {[%clk 0:00:08]} 37. Ref5 {[%clk 0:01:17]} 1-0


[Site "https://www.chess.com"]

[Event "Titled Tuesday Blitz December 27 Early 2022"]
[White "Bogaudinov, Rushan"]
[Black "Tanenbaum, Zachary"]
[WhiteFideId "4129288"]
[BlackFideId "2060850"]
[WhiteElo "1939"]
[BlackElo "2261"]
[Result "1/2-1/2"]
[Round "02"]
[TimeControl "180+2"]
[Date "2022.12.27"]
[WhiteClock "0:00:10"]
[BlackClock "0:00:08"]

1. d4 {[%clk 0:02:59]}  d5 {[%clk 0:02:59]} 2. c4 {[%clk 0:02:59]}  dxc4 {[%clk 0:03:00]} 3. Nc3 {[%clk 0:02:59]}  e5 {[%clk 0:02:58]} 4. e3 {[%clk 0:02:58]}  exd4 {[%clk 0:02:58]} 5. Qxd4 {[%clk 0:02:58]}  Qxd4 {[%clk 0:02:57]} 6. exd4 {[%clk 0:02:59]}  Nc6 {[%clk 0:02:56]} 7. Be3 {[%clk 0:02:43]}  Nf6 {[%clk 0:02:35]} 8. Bxc4 {[%clk 0:02:37]}  Bd6 {[%clk 0:02:33]} 9. Nf3 {[%clk 0:02:31]}  O-O {[%clk 0:02:33]} 10. O-O {[%clk 0:02:30]}  Bg4 {[%clk 0:02:32]} 11. Nb5 {[%clk 0:02:19]}  Bxf3 {[%clk 0:02:31]} 12. gxf3 {[%clk 0:02:20]}  Rad8 {[%clk 0:02:15]} 13. Nxd6 {[%clk 0:02:18]}  Rxd6 {[%clk 0:02:14]} 14. Rfd1 {[%clk 0:02:06]}  Rfd8 {[%clk 0:02:12]} 15. d5 {[%clk 0:01:45]}  Nxd5 {[%clk 0:01:53]} 16. Bc5 {[%clk 0:01:45]}  R6d7 {[%clk 0:01:53]} 17. Bb5 {[%clk 0:01:39]}  Nf4 {[%clk 0:01:21]} 18. Rxd7 {[%clk 0:01:31]}  Rxd7 {[%clk 0:01:21]} 19. Be3 {[%clk 0:01:26]}  Ne6 {[%clk 0:01:13]} 20. Bxc6 {[%clk 0:01:22]}  bxc6 {[%clk 0:01:14]} 21. Bxa7 {[%clk 0:01:09]}  Rd2 {[%clk 0:01:09]} 22. b4 {[%clk 0:00:58]}  h5 {[%clk 0:01:06]} 23. a4 {[%clk 0:00:46]}  Nd4 {[%clk 0:00:36]} 24. Bxd4 {[%clk 0:00:36]}  Rxd4 {[%clk 0:00:37]} 25. a5 {[%clk 0:00:36]}  Rxb4 {[%clk 0:00:37]} 26. a6 {[%clk 0:00:37]}  Rb8 {[%clk 0:00:38]} 27. a7 {[%clk 0:00:37]}  Ra8 {[%clk 0:00:38]} 28. Kf1 {[%clk 0:00:32]}  Kf8 {[%clk 0:00:37]} 29. Ke2 {[%clk 0:00:33]}  Ke7 {[%clk 0:00:38]} 30. Kd3 {[%clk 0:00:34]}  Kd7 {[%clk 0:00:30]} 31. Kc4 {[%clk 0:00:34]}  Kc8 {[%clk 0:00:30]} 32. Kc5 {[%clk 0:00:31]}  Kb7 {[%clk 0:00:30]} 33. Rb1+ {[%clk 0:00:31]}  Kxa7 {[%clk 0:00:30]} 34. Kxc6 {[%clk 0:00:27]}  Re8 {[%clk 0:00:30]} 35. Rb7+ {[%clk 0:00:21]}  Ka6 {[%clk 0:00:29]} 36. Rxc7 {[%clk 0:00:22]}  Re6+ {[%clk 0:00:29]} 37. Kd5 {[%clk 0:00:22]}  Re2 {[%clk 0:00:22]} 38. Rxf7 {[%clk 0:00:20]}  Rxf2 {[%clk 0:00:22]} 39. h4 {[%clk 0:00:18]}  Rh2 {[%clk 0:00:19]} 40. Rf4 {[%clk 0:00:18]}  Kb6 {[%clk 0:00:16]} 41. Kd6 {[%clk 0:00:18]}  Rd2+ {[%clk 0:00:14]} 42. Ke6 {[%clk 0:00:18]}  Kc6 {[%clk 0:00:14]} 43. Kf7 {[%clk 0:00:16]}  Rg2 {[%clk 0:00:14]} 44. Rf5 {[%clk 0:00:17]}  Rg3 {[%clk 0:00:13]} 45. Rxh5 {[%clk 0:00:16]}  Rxf3+ {[%clk 0:00:13]} 46. Kxg7 {[%clk 0:00:16]}  Rg3+ {[%clk 0:00:11]} 47. Kf6 {[%clk 0:00:16]}  Kd7 {[%clk 0:00:11]} 48. Rh7+ {[%clk 0:00:15]}  Kd6 {[%clk 0:00:11]} 49. h5 {[%clk 0:00:15]}  Rf3+ {[%clk 0:00:11]} 50. Kg5 {[%clk 0:00:15]}  Ke6 {[%clk 0:00:10]} 51. Ra7 {[%clk 0:00:14]}  Rg3+ {[%clk 0:00:10]} 52. Kf4 {[%clk 0:00:14]}  Rg1 {[%clk 0:00:09]} 53. h6 {[%clk 0:00:13]}  Kf6 {[%clk 0:00:09]} 54. h7 {[%clk 0:00:14]}  Rh1 {[%clk 0:00:09]} 55. Kg4 {[%clk 0:00:12]}  Kg6 {[%clk 0:00:09]} 56. Kf4 {[%clk 0:00:11]}  Rxh7 {[%clk 0:00:08]} 57. Rxh7 {[%clk 0:00:10]}  Kxh7 {[%clk 0:00:08]} 1/2-1/2


[Site "https://www.chess.com"]

[Event "Titled Tuesday Blitz December 27 Early 2022"]
[White "Borrmann, Laurenz"]
[Black "Kezin, Roman"]
[WhiteFideId "312187930"]
[BlackFideId "24124621"]
[WhiteElo "2304"]
[BlackElo "2514"]
[Result "0-1"]
[Round "02"]
[TimeControl "180+2"]
[Date "2022.12.27"]
[WhiteClock "0:00:02"]
[BlackClock "0:00:42"]

1. e4 {[%clk 0:02:46]}  c5 {[%clk 0:02:56]} 2. Nf3 {[%clk 0:02:43]}  b6 {[%clk 0:02:57]} 3. d4 {[%clk 0:02:40]}  cxd4 {[%clk 0:02:58]} 4. Nxd4 {[%clk 0:02:40]}  Bb7 {[%clk 0:02:58]} 5. Nc3 {[%clk 0:02:41]}  a6 {[%clk 0:02:57]} 6. Bg5 {[%clk 0:02:37]}  Qc7 {[%clk 0:02:57]} 7. Qd2 {[%clk 0:02:29]}  e6 {[%clk 0:02:55]} 8. Be2 {[%clk 0:02:21]}  Nf6 {[%clk 0:02:50]} 9. Bxf6 {[%clk 0:02:16]}  gxf6 {[%clk 0:02:50]} 10. O-O {[%clk 0:02:12]}  Nc6 {[%clk 0:02:32]} 11. Rad1 {[%clk 0:02:04]}  b5 {[%clk 0:02:22]} 12. Rfe1 {[%clk 0:01:38]}  h5 {[%clk 0:01:45]} 13. a3 {[%clk 0:01:21]}  Bh6 {[%clk 0:01:42]} 14. Qd3 {[%clk 0:00:57]}  Nxd4 {[%clk 0:01:42]} 15. Qxd4 {[%clk 0:00:57]}  Bf4 {[%clk 0:01:42]} 16. Qxf6 {[%clk 0:00:51]}  Bxh2+ {[%clk 0:01:42]} 17. Kh1 {[%clk 0:00:51]}  Be5 {[%clk 0:01:43]} 18. Qf3 {[%clk 0:00:41]}  O-O-O {[%clk 0:01:36]} 19. Bf1 {[%clk 0:00:36]}  f5 {[%clk 0:01:35]} 20. Bd3 {[%clk 0:00:31]}  Rdf8 {[%clk 0:01:32]} 21. Qe3 {[%clk 0:00:27]}  h4 {[%clk 0:01:30]} 22. exf5 {[%clk 0:00:24]}  h3 {[%clk 0:01:30]} 23. Be4 {[%clk 0:00:16]}  hxg2+ {[%clk 0:01:29]} 24. Kg1 {[%clk 0:00:13]}  d5 {[%clk 0:01:22]} 25. Bxg2 {[%clk 0:00:13]}  Bh2+ {[%clk 0:01:04]} 26. Kf1 {[%clk 0:00:13]}  Kb8 {[%clk 0:00:55]} 27. Qxe6 {[%clk 0:00:12]}  d4 {[%clk 0:00:54]} 28. Nd5 {[%clk 0:00:11]}  Qxc2 {[%clk 0:00:51]} 29. Rxd4 {[%clk 0:00:08]}  Rxf5 {[%clk 0:00:47]} 30. Qe3 {[%clk 0:00:03]}  Rhf8 {[%clk 0:00:45]} 31. Rd2 {[%clk 0:00:03]}  Qc4+ {[%clk 0:00:43]} 32. Ree2 {[%clk 0:00:02]}  Bxd5 {[%clk 0:00:42]} 0-1


[Site "https://www.chess.com"]

[Event "Titled Tuesday Blitz December 27 Early 2022"]
[White "Bortnyk, Olexandr"]
[Black "Tikhonov, Viacheslav"]
[WhiteFideId "14120828"]
[BlackFideId "44196407"]
[WhiteElo "2605"]
[BlackElo "2220"]
[Result "1/2-1/2"]
[Round "02"]
[TimeControl "180+2"]
[Date "2022.12.27"]
[WhiteClock "0:00:05"]
[BlackClock "0:00:39"]

1. d4 {[%clk 0:03:00]}  Nf6 {[%clk 0:02:53]} 2. Nc3 {[%clk 0:03:00]}  d5 {[%clk 0:02:51]} 3. Bf4 {[%clk 0:03:00]}  c5 {[%clk 0:02:51]} 4. e3 {[%clk 0:03:00]}  cxd4 {[%clk 0:02:48]} 5. exd4 {[%clk 0:03:00]}  Bg4 {[%clk 0:02:48]} 6. f3 {[%clk 0:02:47]}  Bd7 {[%clk 0:02:45]} 7. g4 {[%clk 0:02:41]}  e6 {[%clk 0:02:36]} 8. Nb5 {[%clk 0:02:03]}  Bxb5 {[%clk 0:02:34]} 9. Bxb5+ {[%clk 0:02:03]}  Nc6 {[%clk 0:02:35]} 10. c3 {[%clk 0:02:01]}  Bd6 {[%clk 0:02:33]} 11. Bg3 {[%clk 0:01:59]}  O-O {[%clk 0:02:12]} 12. Ne2 {[%clk 0:01:50]}  Rc8 {[%clk 0:02:09]} 13. O-O {[%clk 0:01:27]}  Qe7 {[%clk 0:02:00]} 14. Kg2 {[%clk 0:01:23]}  e5 {[%clk 0:01:58]} 15. dxe5 {[%clk 0:01:15]}  Bxe5 {[%clk 0:01:57]} 16. Re1 {[%clk 0:01:09]}  Rfe8 {[%clk 0:01:45]} 17. Nd4 {[%clk 0:00:58]}  Qc7 {[%clk 0:01:43]} 18. Bxc6 {[%clk 0:00:47]}  bxc6 {[%clk 0:01:40]} 19. Rxe5 {[%clk 0:00:43]}  Rxe5 {[%clk 0:01:41]} 20. Nxc6 {[%clk 0:00:41]}  Qxc6 {[%clk 0:01:23]} 21. Bxe5 {[%clk 0:00:41]}  Qb5 {[%clk 0:01:21]} 22. Qd2 {[%clk 0:00:34]}  Re8 {[%clk 0:01:21]} 23. Re1 {[%clk 0:00:30]}  Ne4 {[%clk 0:01:18]} 24. fxe4 {[%clk 0:00:22]}  Rxe5 {[%clk 0:01:18]} 25. exd5 {[%clk 0:00:18]}  Rxe1 {[%clk 0:01:15]} 26. Qxe1 {[%clk 0:00:18]}  Qxd5+ {[%clk 0:01:14]} 27. Kf2 {[%clk 0:00:16]}  h6 {[%clk 0:01:11]} 28. b3 {[%clk 0:00:13]}  Qd6 {[%clk 0:01:05]} 29. Qe8+ {[%clk 0:00:10]}  Kh7 {[%clk 0:01:04]} 30. Qe4+ {[%clk 0:00:06]}  g6 {[%clk 0:01:04]} 31. c4 {[%clk 0:00:04]}  Qxh2+ {[%clk 0:01:02]} 32. Ke3 {[%clk 0:00:05]}  Qxa2 {[%clk 0:00:57]} 33. Qd3 {[%clk 0:00:05]}  Qa5 {[%clk 0:00:53]} 34. Qd4 {[%clk 0:00:02]}  Qe1+ {[%clk 0:00:52]} 35. Kf3 {[%clk 0:00:03]}  Qf1+ {[%clk 0:00:50]} 36. Kg3 {[%clk 0:00:03]}  Qe1+ {[%clk 0:00:46]} 37. Kf3 {[%clk 0:00:04]}  Qf1+ {[%clk 0:00:41]} 38. Kg3 {[%clk 0:00:04]}  Qe1+ {[%clk 0:00:39]} 39. Kf3 {[%clk 0:00:05]} 1/2-1/2


[Site "https://www.chess.com"]

[Event "Titled Tuesday Blitz December 27 Early 2022"]
[White "Bringas Gomez, Artai"]
[Black "Balakrishnan, Praveen"]
[WhiteFideId "24534064"]
[BlackFideId "2064871"]
[WhiteElo "2206"]
[BlackElo "2529"]
[Result "0-1"]
[Round "02"]
[TimeControl "180+2"]
[Date "2022.12.27"]
[WhiteClock "0:00:09"]
[BlackClock "0:00:22"]

1. e4 {[%clk 0:03:00]}  c6 {[%clk 0:02:59]} 2. Nf3 {[%clk 0:02:59]}  d5 {[%clk 0:03:00]} 3. d3 {[%clk 0:03:00]}  Qc7 {[%clk 0:02:54]} 4. Nc3 {[%clk 0:02:58]}  dxe4 {[%clk 0:02:50]} 5. dxe4 {[%clk 0:02:58]}  e5 {[%clk 0:02:50]} 6. a4 {[%clk 0:02:55]}  Nf6 {[%clk 0:02:50]} 7. Be2 {[%clk 0:02:53]}  Bb4 {[%clk 0:02:45]} 8. Nd2 {[%clk 0:02:52]}  O-O {[%clk 0:02:41]} 9. O-O {[%clk 0:02:52]}  Nbd7 {[%clk 0:02:40]} 10. Nc4 {[%clk 0:02:49]}  Rd8 {[%clk 0:02:39]} 11. Bg5 {[%clk 0:02:44]}  Nc5 {[%clk 0:02:39]} 12. Qc1 {[%clk 0:02:38]}  Bxc3 {[%clk 0:02:36]} 13. Bxf6 {[%clk 0:02:39]}  gxf6 {[%clk 0:02:36]} 14. bxc3 {[%clk 0:02:38]}  Nxe4 {[%clk 0:02:31]} 15. Qe3 {[%clk 0:02:31]}  Bf5 {[%clk 0:02:29]} 16. f4 {[%clk 0:02:26]}  b5 {[%clk 0:02:23]} 17. fxe5 {[%clk 0:02:25]}  Bg6 {[%clk 0:02:22]} 18. axb5 {[%clk 0:02:18]}  cxb5 {[%clk 0:02:21]} 19. Nd6 {[%clk 0:02:17]}  Qxc3 {[%clk 0:01:54]} 20. Qxc3 {[%clk 0:02:11]}  Nxc3 {[%clk 0:01:54]} 21. Bf3 {[%clk 0:02:12]}  Rab8 {[%clk 0:01:49]} 22. Nb7 {[%clk 0:02:09]}  Rd2 {[%clk 0:01:36]} 23. exf6 {[%clk 0:02:09]}  Rxc2 {[%clk 0:01:32]} 24. Rxa7 {[%clk 0:02:07]}  b4 {[%clk 0:01:25]} 25. Rfa1 {[%clk 0:02:07]}  h5 {[%clk 0:01:02]} 26. Na5 {[%clk 0:01:39]}  b3 {[%clk 0:00:54]} 27. Nxb3 {[%clk 0:00:14]}  Rxb3 {[%clk 0:00:55]} 28. h4 {[%clk 0:00:13]}  Rb6 {[%clk 0:00:49]} 29. R1a6 {[%clk 0:00:11]}  Rxa6 {[%clk 0:00:43]} 30. Rxa6 {[%clk 0:00:12]}  Ne2+ {[%clk 0:00:43]} 31. Kh2 {[%clk 0:00:08]}  Nd4 {[%clk 0:00:42]} 32. Bd5 {[%clk 0:00:08]}  Nf5 {[%clk 0:00:35]} 33. Ra8+ {[%clk 0:00:06]}  Kh7 {[%clk 0:00:35]} 34. Ra7 {[%clk 0:00:02]}  Nh6 {[%clk 0:00:34]} 35. Bb3 {[%clk 0:00:01]}  Rf2 {[%clk 0:00:32]} 36. Ra3 {[%clk 0:00:02]}  Rxf6 {[%clk 0:00:31]} 37. Ra4 {[%clk 0:00:02]}  Ng4+ {[%clk 0:00:31]} 38. Kg3 {[%clk 0:00:02]}  Rd6 {[%clk 0:00:31]} 39. Bc4 {[%clk 0:00:02]}  Rd4 {[%clk 0:00:30]} 40. Bb5 {[%clk 0:00:02]}  Rd5 {[%clk 0:00:28]} 41. Bc6 {[%clk 0:00:02]}  Rc5 {[%clk 0:00:27]} 42. Bf3 {[%clk 0:00:03]}  Ne5 {[%clk 0:00:27]} 43. Ra7 {[%clk 0:00:03]}  Nxf3 {[%clk 0:00:27]} 44. gxf3 {[%clk 0:00:03]}  Kg7 {[%clk 0:00:27]} 45. Kf4 {[%clk 0:00:03]}  Rc4+ {[%clk 0:00:28]} 46. Kg3 {[%clk 0:00:04]}  Bf5 {[%clk 0:00:27]} 47. Ra5 {[%clk 0:00:04]}  Kg6 {[%clk 0:00:27]} 48. Ra6+ {[%clk 0:00:04]}  Be6 {[%clk 0:00:27]} 49. Ra5 {[%clk 0:00:05]}  Rc3 {[%clk 0:00:25]} 50. Rg5+ {[%clk 0:00:05]}  Kh6 {[%clk 0:00:26]} 51. Re5 {[%clk 0:00:05]}  Rd3 {[%clk 0:00:26]} 52. Kf4 {[%clk 0:00:04]}  Bd5 {[%clk 0:00:25]} 53. Kg3 {[%clk 0:00:01]}  Rxf3+ {[%clk 0:00:25]} 54. Kh2 {[%clk 0:00:02]}  Be6 {[%clk 0:00:24]} 55. Re4 {[%clk 0:00:02]}  Bg4 {[%clk 0:00:23]} 56. Kg2 {[%clk 0:00:02]}  Ra3 {[%clk 0:00:21]} 57. Rb4 {[%clk 0:00:01]}  Kg6 {[%clk 0:00:21]} 58. Kf2 {[%clk 0:00:02]}  Rh3 {[%clk 0:00:20]} 59. Kg1 {[%clk 0:00:02]}  Rxh4 {[%clk 0:00:21]} 60. Rb6+ {[%clk 0:00:03]}  f6 {[%clk 0:00:20]} 61. Rb5 {[%clk 0:00:04]}  Rh3 {[%clk 0:00:20]} 62. Rb4 {[%clk 0:00:05]}  Rg3+ {[%clk 0:00:21]} 63. Kh2 {[%clk 0:00:04]}  Rf3 {[%clk 0:00:21]} 64. Kg2 {[%clk 0:00:04]}  Rf5 {[%clk 0:00:21]} 65. Kg3 {[%clk 0:00:04]}  Kg5 {[%clk 0:00:21]} 66. Ra4 {[%clk 0:00:04]}  h4+ {[%clk 0:00:21]} 67. Kh2 {[%clk 0:00:04]}  Rb5 {[%clk 0:00:21]} 68. Ra2 {[%clk 0:00:03]}  f5 {[%clk 0:00:22]} 69. Rd2 {[%clk 0:00:04]}  Re5 {[%clk 0:00:22]} 70. Rc2 {[%clk 0:00:04]}  Re2+ {[%clk 0:00:22]} 71. Rxe2 {[%clk 0:00:05]}  Bxe2 {[%clk 0:00:22]} 72. Kh3 {[%clk 0:00:05]}  f4 {[%clk 0:00:22]} 73. Kg2 {[%clk 0:00:06]}  Kg4 {[%clk 0:00:22]} 74. Kf2 {[%clk 0:00:07]}  f3 {[%clk 0:00:23]} 75. Kg1 {[%clk 0:00:07]}  Kg3 {[%clk 0:00:21]} 76. Kh1 {[%clk 0:00:08]}  h3 {[%clk 0:00:21]} 77. Kg1 {[%clk 0:00:08]}  f2+ {[%clk 0:00:21]} 78. Kh1 {[%clk 0:00:09]}  Bf3# {[%clk 0:00:22]} 0-1


[Site "https://www.chess.com"]